[Event "Fagernes Open 2021"]
[Site "Fagernes"]
[Date "2021.10.15"]
[Round "7.14"]
[White "Grindbakken, Erik"]
[Black "Unhjem, Bjorn Robert Lovoll"]
[Result "0-1"]
[ECO "A21"]
[WhiteElo "1632"]
[BlackElo "1924"]
[Annotator "NA"]
[PlyCount "124"]
[EventDate "2021.10.10"]
[EventCountry "NOR"]
[SourceTitle "playchess.com"]
[Source "ChessBase"]
[SourceQuality "1"]
[TimeControl "40/5400+30:1800+30"]

1. c4 {[%emt 0:00:00]} g6 {[%emt 0:00:00]} 2. Nc3 {[%emt 0:00:00]} Bg7 {[%emt 0:00:00]} 3. g3 {[%emt 0:00:00]} e5 {[%emt 0:00:00]} 4. Bg2 {[%emt 0:00:00]} Ne7 {[%emt 0:00:00]} 5. d3 {[%emt 0:00:00]} d6 {[%emt 0:00:00]} 6. e4 {[%emt 0:04:10]} Nd7 {[%emt 0:01:27]} 7. Nge2 {[%emt 0:01:08]} O-O {[%emt 0:03:06]} 8. Be3 {[%emt 0:02:33]} Nc5 {[%emt 0:02:14]} 9. Qd2 {[%emt 0:06:56]} Nc6 {[%emt 0:00:31]} 10. O-O {[%emt 0:07:50]} Be6 {[%emt 0:02:50]} 11. f4 {[%emt 0:02:56]} Qd7 {[%emt 0:00:43]} 12. Rf2 {[%emt 0:01:03]} Nb4 {[%emt 0:05:52]} 13. Nc1 {[%emt 0:02:02]} Nc6 {[%emt 0:00:21]} 14. N1e2 {[%emt 0:01:04]} Nd4 {[%emt 0:03:11]} 15. Raf1 {[%emt 0:02:06]} Bg4 {[%emt 0:01:42]} 16. Bxd4 {[%emt 0:09:38]} exd4 {[%emt 0:00:09]} 17. Nb5 {[%emt 0:00:16]} Bxe2 {[%emt 0:01:35]} 18. Qxe2 {[%emt 0:02:13]} c6 {[%emt 0:00:17]} 19. Na3 {[%emt 0:00:26]} a5 {[%emt 0:01:26]} 20. f5 {[%emt 0:01:57]} Be5 {[%emt 0:00:25]} 21. Nc2 {[%emt 0:03:34]} b5 {[%emt 0:02:31]} 22. b3 {[%emt 0:01:00]} bxc4 {[%emt 0:00:10]} 23. bxc4 {[%emt 0:00:09]} f6 {[%emt 0:01:42]} 24. Ne1 {[%emt 0:01:26]} g5 {[%emt 0:00:23]} 25. Bf3 {[%emt 0:06:55]} Rfb8 {[%emt 0:00:50]} 26. Kg2 {[%emt 0:00:30]} a4 {[%emt 0:01:18]} 27. h4 {[%emt 0:00:31]} gxh4 {[%emt 0:00:48]} 28. gxh4 {[%emt 0:00:49]} Qg7+ {[%emt 0:00:44]} (28... Kh8 $19 29. Rg1 a3) 29. Kh1 {[%emt 0:00:16]} Qh6 {[%emt 0:00:06]} 30. Rg2+ $19 {[%emt 0:01:09]} Kh8 {[%emt 0:00:07]} 31. Bh5 {[%emt 0:02:07]} Rg8 {[%emt 0:18:43]} 32. Rfg1 {[%emt 0:00:40]} Bf4 {[%emt 0:00:42]} 33. Rg4 {[%emt 0:08:46]} Be3 {[%emt 0:06:13]} 34. R1g2 {[%emt 0:03:12]} Nd7 {[%emt 0:05:50]} 35. Bf7 {[%emt 0:01:57]} Rg5 {[%emt 0:00:34]} 36. Nf3 {[%emt 0:02:25]} Ne5 {[%emt 0:01:33]} 37. Nxg5 {[%emt 0:04:11]} fxg5 {[%emt 0:01:33]} 38. Be6 {[%emt 0:02:10]} Rb8 {[%emt 0:02:15]} 39. Qf1 {[%emt 0:06:17]} Nxg4 {[%emt 0:08:16]} 40. Rxg4 {[%emt 0:00:43]} Rb2 {[%emt 0:02:08]} 41. f6 {[%emt 0:31:55]} Rf2 {[%emt 0:30:54]} 42. Qb1 {[%emt 0:00:31]} Qxf6 {[%emt 0:00:55]} 43. Qb8+ {[%emt 0:01:38]} Qf8 {[%emt 0:24:08]} 44. Qxf8+ {[%emt 0:00:29]} Rxf8 {[%emt 0:00:07]} 45. Bf5 {[%emt 0:08:21]} Rb8 {[%emt 0:00:00]} 46. hxg5 {[%emt 0:00:00]} c5 {[%emt 0:00:00]} 47. g6 {[%emt 0:00:00]} hxg6 {[%emt 0:00:00]} 48. Rxg6 {[%emt 0:00:00]} Bf4 {[%emt 0:00:00]} 49. Kg2 {[%emt 0:00:00]} Rb2+ {[%emt 0:00:00]} 50. Kf3 {[%emt 0:00:00]} Be5 {[%emt 0:00:00]} 51. Rg2 {[%emt 0:00:00]} a3 {[%emt 0:00:00]} 52. Bd7 {[%emt 0:00:00]} Bf4 {[%emt 0:00:00]} 53. Ba4 {[%emt 0:00:00]} Bd2 {[%emt 0:00:00]} 54. Bb3 {[%emt 0:00:00]} Rxb3 {[%emt 0:00:00]} 55. Rxd2 {[%emt 0:00:00]} Rb2 {[%emt 0:00:00]} 56. Ke2 {[%emt 0:00:00]} Kg7 {[%emt 0:00:00]} 57. Kd1 {[%emt 0:00:00]} Rb1+ {[%emt 0:00:00]} 58. Ke2 {[%emt 0:00:00]} Kf6 {[%emt 0:00:00]} 59. Rc2 {[%emt 0:00:00]} Ke5 {[%emt 0:00:00]} 60. Rd2 {[%emt 0:00:00]} Kf4 {[%emt 0:00:00]} 61. Kf2 {[%emt 0:00:00]} Rb2 {[%emt 0:00:00]} 62. Ke2 {[%emt 0:00:00]} Rxd2+ {[%emt 0:00:00]} 0-1

[Event "Fagernes Open 2021"]
[Site "Fagernes"]
[Date "2021.10.15"]
[Round "7.15"]
[White "Orban, Tiberiu"]
[Black "Kveim, Ingvar Torjesen"]
[Result "0-1"]
[ECO "A57"]
[WhiteElo "1731"]
[BlackElo "1466"]
[Annotator "NA"]
[PlyCount "112"]
[EventDate "2021.10.10"]
[EventCountry "NOR"]
[SourceTitle "playchess.com"]
[Source "ChessBase"]
[SourceQuality "1"]
[TimeControl "40/5400+30:1800+30"]

1. d4 {[%emt 0:00:00]} Nf6 {[%emt 0:00:00]} 2. Nf3 {[%emt 0:00:00]} c5 {[%emt 0:00:00]} 3. d5 {[%emt 0:00:00]} b5 {[%emt 0:00:00]} 4. c4 {[%emt 0:00:00]} b4 {[%emt 0:00:00]} 5. Nbd2 {[%emt 0:00:00]} g6 {[%emt 0:00:00]} 6. e4 {[%emt 0:00:00]} d6 {[%emt 0:00:00]} 7. e5 {[%emt 0:00:00]} Ng4 {[%emt 0:03:41]} 8. h3 {[%emt 0:00:00]} Nxe5 {[%emt 0:02:30]} 9. Nxe5 {[%emt 0:00:00]} dxe5 {[%emt 0:00:03]} 10. Ne4 {[%emt 0:00:00]} Qc7 {[%emt 0:04:45]} 11. Be3 {[%emt 0:00:00]} Na6 {[%emt 0:16:25]} 12. d6 {[%emt 0:00:00]} Qc6 {[%emt 0:00:19]} 13. Qd5 {[%emt 0:00:32]} Qxd5 {[%emt 0:04:01]} 14. cxd5 {[%emt 0:00:03]} exd6 {[%emt 0:00:38]} 15. Bb5+ {[%emt 0:00:45]} Kd8 {[%emt 0:03:21]} 16. f4 {[%emt 0:03:30]} f5 {[%emt 0:10:01]} 17. Ng5 {[%emt 0:00:16]} exf4 {[%emt 0:10:27]} 18. Bxf4 {[%emt 0:01:36]} Kc7 {[%emt 0:00:42]} 19. O-O {[%emt 0:04:41]} h6 {[%emt 0:05:08]} 20. Ne6+ {[%emt 0:02:58]} Bxe6 {[%emt 0:00:14]} 21. dxe6 {[%emt 0:00:36]} Nb8 {[%emt 0:03:30]} 22. Rac1 {[%emt 0:02:44]} g5 {[%emt 0:05:22]} 23. Be3 {[%emt 0:03:28]} f4 {[%emt 0:01:51]} 24. Bd4 {[%emt 0:00:55]} Rg8 {[%emt 0:02:07]} 25. Bd3 {[%emt 0:00:27]} Bg7 {[%emt 0:01:46]} 26. Bxg7 {[%emt 0:05:53]} Rxg7 {[%emt 0:00:07]} 27. a3 {[%emt 0:00:07]} a5 {[%emt 0:01:09]} 28. axb4 {[%emt 0:01:26]} axb4 {[%emt 0:00:20]} 29. Ra1 {[%emt 0:00:04]} Rxa1 {[%emt 0:00:25]} 30. Rxa1 {[%emt 0:00:05]} Nc6 {[%emt 0:00:50]} 31. Be4 {[%emt 0:01:56]} Re7 {[%emt 0:00:39]} 32. Bd5 {[%emt 0:00:25]} Kb7 {[%emt 0:10:00]} 33. Ra5 {[%emt 0:01:14]} Re8 {[%emt 0:01:20]} 34. Ra1 {[%emt 0:03:59]} Kb6 {[%emt 0:00:16]} 35. b3 {[%emt 0:00:33]} Ne7 {[%emt 0:01:19]} 36. Bc4 {[%emt 0:03:47]} d5 {[%emt 0:06:27]} 37. Ra6+ {[%emt 0:00:17]} Kb7 {[%emt 0:00:12]} 38. Bb5 {[%emt 0:00:11]} Rd8 {[%emt 0:00:09]} 39. Ra1 {[%emt 0:00:40]} Rd6 {[%emt 0:01:12]} 40. Bd7 {[%emt 0:00:21]} c4 {[%emt 0:01:33]} 41. bxc4 {[%emt 0:32:58]} dxc4 {[%emt 0:30:26]} 42. Bb5 {[%emt 0:01:24]} c3 {[%emt 0:00:42]} 43. Bc4 {[%emt 0:00:19]} c2 {[%emt 0:06:50]} 44. Bb3 {[%emt 0:00:13]} Rc6 {[%emt 0:00:28]} 45. Rc1 {[%emt 0:00:14]} Rc3 {[%emt 0:00:37]} 46. Bxc2 {[%emt 0:00:19]} Kc7 {[%emt 0:00:50]} 47. Rd1 {[%emt 0:00:18]} Rxc2 {[%emt 0:00:00]} 48. Rd7+ {[%emt 0:00:00]} Kc6 {[%emt 0:00:00]} 49. Rxe7 {[%emt 0:00:00]} Rc4 {[%emt 0:00:00]} 50. Re8 {[%emt 0:00:00]} Kd6 {[%emt 0:00:00]} 51. Rh8 {[%emt 0:00:00]} Kxe6 {[%emt 0:00:00]} 52. Rxh6+ {[%emt 0:00:00]} Kd5 {[%emt 0:00:00]} 53. Rg6 {[%emt 0:00:00]} b3 {[%emt 0:00:00]} 54. Rxg5+ {[%emt 0:00:00]} Kd4 {[%emt 0:00:00]} 55. Rb5 {[%emt 0:00:00]} Kc3 {[%emt 0:00:00]} 56. Rb8 {[%emt 0:00:00]} b2 {[%emt 0:00:00]} 0-1

[Event "Fagernes Open 2021"]
[Site "Fagernes"]
[Date "2021.10.15"]
[Round "7.16"]
[White "Shehzad, Alina"]
[Black "Stenseng, Benjamin"]
[Result "0-1"]
[ECO "B40"]
[WhiteElo "1189"]
[BlackElo "1590"]
[Annotator "NA"]
[PlyCount "82"]
[EventDate "2021.10.10"]
[EventCountry "NOR"]
[SourceTitle "playchess.com"]
[Source "ChessBase"]
[SourceQuality "1"]
[TimeControl "40/5400+30:1800+30"]

1. e4 {[%emt 0:00:00]} c5 {[%emt 0:00:00]} 2. Nf3 {[%emt 0:00:00]} e6 {[%emt 0:00:00]} 3. d4 {[%emt 0:00:00]} cxd4 {[%emt 0:00:00]} 4. Nxd4 {[%emt 0:00:00]} Nf6 {[%emt 0:00:00]} 5. e5 {[%emt 0:00:00]} Qa5+ {[%emt 0:00:00]} 6. c3 {[%emt 0:00:00]} Qxe5+ {[%emt 0:00:00]} 7. Be3 {[%emt 0:00:00]} Nc6 {[%emt 0:00:00]} 8. Be2 {[%emt 0:02:23]} Be7 {[%emt 0:00:00]} 9. Qd2 {[%emt 0:04:34]} Qa5 {[%emt 0:00:40]} 10. O-O {[%emt 0:03:17]} O-O {[%emt 0:03:02]} 11. Qc2 {[%emt 0:08:59]} Nxd4 {[%emt 0:01:17]} 12. Bxd4 {[%emt 0:00:34]} b6 {[%emt 0:04:54]} 13. Bf3 {[%emt 0:02:36]} Rb8 {[%emt 0:02:38]} 14. Nd2 {[%emt 0:06:18]} Bb7 {[%emt 0:00:49]} 15. Nc4 {[%emt 0:16:17]} Qg5 {[%emt 0:03:02]} 16. Be3 {[%emt 0:02:43]} Qh4 {[%emt 0:01:06]} 17. Ne5 {[%emt 0:12:53]} Bxf3 {[%emt 0:00:21]} 18. Nxf3 {[%emt 0:00:12]} Qh5 {[%emt 0:00:32]} 19. Rad1 {[%emt 0:03:15]} d5 {[%emt 0:04:37]} 20. Nd4 {[%emt 0:02:31]} Bd6 {[%emt 0:05:06]} 21. h3 {[%emt 0:06:18]} Rbc8 {[%emt 0:05:53]} 22. Qa4 {[%emt 0:03:47]} Bb8 {[%emt 0:04:12]} 23. Nb5 {[%emt 0:04:16]} Rc4 {[%emt 0:01:51]} 24. Qa6 {[%emt 0:04:03]} Rg4 {[%emt 0:02:17]} 25. Kh1 {[%emt 0:02:34]} Qe5 {[%emt 0:04:09]} 26. f4 {[%emt 0:01:43]} Qxe3 {[%emt 0:00:55]} 27. hxg4 {[%emt 0:00:39]} Nxg4 {[%emt 0:02:27]} 28. Nd4 {[%emt 0:01:42]} Nf2+ {[%emt 0:01:08]} 29. Kg1 {[%emt 0:01:09]} Nxd1+ {[%emt 0:00:52]} 30. Kh1 {[%emt 0:00:16]} Nf2+ {[%emt 0:00:07]} 31. Kg1 {[%emt 0:00:16]} Ne4+ {[%emt 0:00:14]} 32. Kh2 {[%emt 0:00:33]} Bxf4+ {[%emt 0:00:22]} 33. Kh1 {[%emt 0:00:08]} Ng3+ {[%emt 0:00:18]} 34. Kh2 {[%emt 0:00:09]} Nxf1+ {[%emt 0:00:32]} 35. Kh1 {[%emt 0:00:08]} Nd2 {[%emt 0:00:38]} 36. Nf3 {[%emt 0:00:29]} Nxf3 {[%emt 0:00:22]} 37. gxf3 {[%emt 0:00:06]} Qf2 {[%emt 0:00:09]} 38. Qe2 {[%emt 0:00:41]} Qxe2 {[%emt 0:00:09]} 39. Kg1 {[%emt 0:00:08]} Be3+ {[%emt 0:00:12]} 40. Kh1 {[%emt 0:00:11]} Qf2 {[%emt 0:00:04]} 41. a3 {[%emt 0:30:08]} Qg1# {[%emt 0:00:04]} 0-1

[Event "Fagernes Open 2021"]
[Site "Fagernes"]
[Date "2021.10.15"]
[Round "7.17"]
[White "Langvik, Ulrikke"]
[Black "Lien, Sebastian"]
[Result "1-0"]
[ECO "D05"]
[WhiteElo "1542"]
[BlackElo "1316"]
[Annotator "NA"]
[PlyCount "73"]
[EventDate "2021.10.10"]
[EventCountry "NOR"]
[SourceTitle "playchess.com"]
[Source "ChessBase"]
[SourceQuality "1"]
[TimeControl "40/5400+30:1800+30"]

1. d4 {[%emt 0:00:00]} Nf6 {[%emt 0:00:00]} 2. Nf3 {[%emt 0:00:00]} e6 {[%emt 0:00:00]} 3. e3 {[%emt 0:00:00]} d5 {[%emt 0:00:00]} 4. Bd3 {[%emt 0:00:00]} c5 {[%emt 0:00:00]} 5. b3 {[%emt 0:00:00]} Nc6 {[%emt 0:00:00]} 6. c3 {[%emt 0:00:00]} Bd6 {[%emt 0:00:00]} 7. Nbd2 {[%emt 0:00:00]} O-O {[%emt 0:00:21]} 8. O-O {[%emt 0:00:00]} Re8 {[%emt 0:03:42]} 9. e4 {[%emt 0:08:00]} dxe4 {[%emt 0:07:46]} 10. Nxe4 {[%emt 0:00:35]} Nxe4 {[%emt 0:00:55]} 11. Bxe4 {[%emt 0:00:14]} cxd4 {[%emt 0:00:54]} 12. Ng5 {[%emt 0:24:24]} g6 {[%emt 0:06:48]} 13. Qf3 {[%emt 0:19:54]} Qc7 {[%emt 0:03:32]} 14. Bxc6 {[%emt 0:06:46]} bxc6 {[%emt 0:00:15]} 15. h4 {[%emt 0:03:07]} dxc3 {[%emt 0:06:03]} 16. Ne4 {[%emt 0:08:22]} Be7 {[%emt 0:02:28]} 17. Qxc3 {[%emt 0:15:14]} Bxh4 {[%emt 0:01:52]} 18. g3 {[%emt 0:00:52]} Be7 {[%emt 0:05:37]} 19. Bf4 {[%emt 0:00:03]} Qd8 {[%emt 0:03:58]} 20. Rfd1 {[%emt 0:00:35]} Bd7 {[%emt 0:01:03]} 21. Rd2 {[%emt 0:05:33]} f5 {[%emt 0:01:00]} 22. Bh6 {[%emt 0:00:42]} e5 {[%emt 0:04:30]} 23. Qxe5 {[%emt 0:00:29]} Bf8 {[%emt 0:00:09]} 24. Nf6+ {[%emt 0:00:27]} Kf7 {[%emt 0:00:05]} 25. Rxd7+ {[%emt 0:02:48]} Qxd7 {[%emt 0:00:21]} 26. Nxd7 {[%emt 0:00:16]} Rxe5 {[%emt 0:00:09]} 27. Nxe5+ {[%emt 0:00:07]} Ke6 {[%emt 0:01:00]} 28. Bxf8 {[%emt 0:00:14]} Kxe5 {[%emt 0:00:36]} 29. Bc5 {[%emt 0:01:28]} Kd5 {[%emt 0:02:45]} 30. b4 {[%emt 0:00:03]} a5 {[%emt 0:00:07]} 31. a3 {[%emt 0:00:24]} axb4 {[%emt 0:00:05]} 32. Bxb4 {[%emt 0:00:21]} Ra7 {[%emt 0:00:30]} 33. Kg2 {[%emt 0:00:28]} Kc4 {[%emt 0:00:10]} 34. Rc1+ {[%emt 0:00:14]} Kb5 {[%emt 0:00:03]} 35. Rc5+ {[%emt 0:00:31]} Kb6 {[%emt 0:00:20]} 36. Re5 {[%emt 0:00:22]} Rc7 {[%emt 0:00:20]} 37. Ba5+ {[%emt 0:00:24]} 1-0

[Event "Fagernes Open 2021"]
[Site "Fagernes"]
[Date "2021.10.16"]
[Round "8.1"]
[White "Myagmarsuren, Evsuld"]
[Black "Krivenko, Dion"]
[Result "1/2-1/2"]
[ECO "B38"]
[WhiteElo "1650"]
[BlackElo "2045"]
[Annotator "NA"]
[PlyCount "95"]
[EventDate "2021.10.10"]
[EventCountry "NOR"]
[SourceTitle "playchess.com"]
[Source "ChessBase"]
[SourceQuality "1"]
[TimeControl "40/5400+30:1800+30"]

1. e4 {[%emt 0:00:00]} c5 {[%emt 0:00:00]} 2. Nf3 {[%emt 0:00:00]} Nc6 {[%emt 0:00:00]} 3. d4 {[%emt 0:00:00]} cxd4 {[%emt 0:00:00]} 4. Nxd4 {[%emt 0:00:00]} g6 {[%emt 0:00:00]} 5. c4 {[%emt 0:00:00]} Bg7 {[%emt 0:00:00]} 6. Be3 {[%emt 0:00:00]} d6 {[%emt 0:00:00]} 7. Be2 {[%emt 0:00:00]} Nf6 {[%emt 0:00:00]} 8. Nc3 {[%emt 0:00:00]} O-O {[%emt 0:00:00]} 9. O-O {[%emt 0:00:00]} Bd7 {[%emt 0:00:00]} 10. f4 {[%emt 0:00:46]} Qb6 {[%emt 0:02:37]} 11. Nc2 {[%emt 0:07:16]} Qd8 {[%emt 0:13:26]} 12. Qd2 {[%emt 0:18:55]} Bg4 {[%emt 0:10:42]} 13. Rad1 {[%emt 0:08:32]} Bxe2 {[%emt 0:11:16]} 14. Qxe2 {[%emt 0:01:43]} Qa5 {[%emt 0:00:57]} 15. Bd2 {[%emt 0:08:20]} Qh5 {[%emt 0:03:33]} 16. Qxh5 {[%emt 0:01:24]} Nxh5 {[%emt 0:00:18]} 17. g3 {[%emt 0:05:00]} Rfc8 {[%emt 0:03:13]} 18. b3 {[%emt 0:03:39]} Nf6 {[%emt 0:00:38]} 19. Rfe1 {[%emt 0:05:28]} Kf8 {[%emt 0:01:49]} 20. Nd5 {[%emt 0:02:30]} Nxd5 {[%emt 0:04:08]} 21. exd5 {[%emt 0:00:51]} Nd4 {[%emt 0:00:19]} 22. Nxd4 {[%emt 0:00:43]} Bxd4+ {[%emt 0:00:01]} 23. Be3 {[%emt 0:01:23]} Bc5 {[%emt 0:00:02]} 24. Kf2 {[%emt 0:04:32]} a6 {[%emt 0:00:30]} 25. Bxc5 {[%emt 0:02:00]} Rxc5 {[%emt 0:00:02]} 26. Ke3 {[%emt 0:02:24]} b5 {[%emt 0:01:36]} 27. Kd4 {[%emt 0:00:29]} Rac8 {[%emt 0:00:14]} 28. Rc1 {[%emt 0:00:31]} Ke8 {[%emt 0:01:16]} 29. Re3 {[%emt 0:01:18]} R8c7 {[%emt 0:05:36]} 30. Rec3 {[%emt 0:02:51]} b4 {[%emt 0:02:11]} 31. Re3 {[%emt 0:01:16]} Ra5 $14 {[%emt 0:00:28]} 32. Re2 {[%emt 0:02:22]} Rac5 {[%emt 0:06:18]} 33. a3 {[%emt 0:02:51]} a5 {[%emt 0:06:23]} 34. axb4 {[%emt 0:02:03]} axb4 {[%emt 0:00:05]} 35. Ra1 {[%emt 0:00:21]} Kf8 {[%emt 0:03:08]} 36. Ra8+ {[%emt 0:01:20]} Kg7 {[%emt 0:01:11]} 37. Rb8 {[%emt 0:01:37]} Ra5 {[%emt 0:00:12]} 38. Rxb4 {[%emt 0:00:28]} Ra1 {[%emt 0:00:07]} 39. Ra4 {[%emt 0:01:23]} Rd1+ {[%emt 0:01:53]} 40. Kc3 {[%emt 0:01:33]} Kf6 {[%emt 0:00:50]} 41. Kc2 {[%emt 0:32:20]} Rxd5 {[%emt 0:30:36]} 42. Ra1 {[%emt 0:03:35]} Rdc5 {[%emt 0:00:40]} 43. Kd3 {[%emt 0:02:00]} h5 {[%emt 0:03:42]} 44. Rc1 {[%emt 0:06:07]} d5 {[%emt 0:04:00]} 45. Rec2 {[%emt 0:00:49]} Kf5 {[%emt 0:06:30]} 46. b4 {[%emt 0:00:00]} dxc4+ {[%emt 0:00:00]} 47. Rxc4 {[%emt 0:00:00]} Rd7+ {[%emt 0:00:00]} 48. Ke3 {[%emt 0:00:00]} 1/2-1/2

[Event "Fagernes Open 2021"]
[Site "Fagernes"]
[Date "2021.10.16"]
[Round "8.2"]
[White "Kreken, Eivind Grunt"]
[Black "Pedersen, Max Moe"]
[Result "1/2-1/2"]
[ECO "D02"]
[WhiteElo "1838"]
[BlackElo "1837"]
[Annotator "NA"]
[PlyCount "81"]
[EventDate "2021.10.10"]
[EventCountry "NOR"]
[SourceTitle "playchess.com"]
[Source "ChessBase"]
[SourceQuality "1"]
[TimeControl "40/5400+30:1800+30"]

1. d4 {[%emt 0:00:00]} d5 {[%emt 0:00:00]} 2. Bf4 {[%emt 0:00:00]} c5 {[%emt 0:00:00]} 3. e3 {[%emt 0:00:00]} Nc6 {[%emt 0:00:00]} 4. Nf3 {[%emt 0:00:00]} Nf6 {[%emt 0:00:00]} 5. Nbd2 {[%emt 0:00:00]} Qb6 {[%emt 0:00:00]} 6. dxc5 {[%emt 0:00:00]} Qxb2 {[%emt 0:00:00]} 7. Rb1 {[%emt 0:02:50]} Qc3 {[%emt 0:00:00]} 8. Bb5 {[%emt 0:06:17]} g6 {[%emt 0:00:00]} 9. O-O {[%emt 0:12:21]} Bg7 {[%emt 0:00:00]} 10. Nb3 {[%emt 0:10:11]} O-O {[%emt 0:00:00]} 11. Bxc6 {[%emt 0:06:21]} bxc6 {[%emt 0:00:00]} 12. Be5 {[%emt 0:00:17]} Qc4 {[%emt 0:00:00]} 13. Qd4 {[%emt 0:21:45]} Qxd4 {[%emt 0:00:00]} 14. Nfxd4 {[%emt 0:02:23]} Ne4 {[%emt 0:00:00]} 15. Bxg7 {[%emt 0:00:42]} Kxg7 {[%emt 0:00:00]} 16. Nxc6 {[%emt 0:05:19]} e6 {[%emt 0:00:00]} 17. f3 {[%emt 0:06:19]} Nc3 {[%emt 0:00:00]} 18. Rb2 {[%emt 0:02:20]} Ba6 {[%emt 0:00:00]} 19. Re1 {[%emt 0:01:33]} Rfc8 {[%emt 0:00:36]} 20. Nb4 {[%emt 0:01:52]} Bc4 {[%emt 0:09:35]} 21. Nd3 {[%emt 0:04:31]} Rab8 {[%emt 0:07:33]} 22. Nd2 {[%emt 0:04:24]} Rxb2 {[%emt 0:01:14]} 23. Nxb2 {[%emt 0:00:10]} Bxa2 {[%emt 0:06:46]} 24. Nd3 {[%emt 0:01:13]} a5 {[%emt 0:04:47]} 25. Ra1 {[%emt 0:02:16]} Rb8 {[%emt 0:12:36]} 26. Nc1 {[%emt 0:08:12]} Bc4 {[%emt 0:07:41]} 27. Rxa5 {[%emt 0:01:27]} Rb2 {[%emt 0:00:44]} 28. Nxc4 {[%emt 0:01:13]} dxc4 {[%emt 0:00:11]} 29. c6 {[%emt 0:00:22]} Nb5 {[%emt 0:02:47]} 30. Ne2 {[%emt 0:00:20]} Nd6 {[%emt 0:03:25]} 31. Nd4 {[%emt 0:00:26]} Kf6 {[%emt 0:03:20]} 32. c7 {[%emt 0:00:39]} Ke7 {[%emt 0:04:11]} 33. Ra6 {[%emt 0:00:42]} Nc8 {[%emt 0:01:02]} 34. f4 {[%emt 0:00:13]} Kd7 {[%emt 0:00:38]} 35. Rc6 {[%emt 0:00:26]} Rxc2 {[%emt 0:01:58]} 36. h3 {[%emt 0:00:53]} Rc1+ {[%emt 0:02:18]} 37. Kf2 {[%emt 0:00:11]} c3 {[%emt 0:01:51]} 38. Rc5 {[%emt 0:00:45]} Nd6 {[%emt 0:01:13]} 39. Rc6 {[%emt 0:00:14]} Nc8 {[%emt 0:00:06]} 40. Rc5 {[%emt 0:00:15]} Nd6 {[%emt 0:00:05]} 41. Rc6 {[%emt 0:30:24]} 1/2-1/2

[Event "Fagernes Open 2021"]
[Site "Fagernes"]
[Date "2021.10.16"]
[Round "8.3"]
[White "Dahl, Torbjorn"]
[Black "Skigelstrand, Live Jorgensen"]
[Result "1-0"]
[ECO "A05"]
[WhiteElo "1876"]
[BlackElo "1649"]
[Annotator "NA"]
[PlyCount "107"]
[EventDate "2021.10.10"]
[EventCountry "NOR"]
[SourceTitle "playchess.com"]
[Source "ChessBase"]
[SourceQuality "1"]
[TimeControl "40/5400+30:1800+30"]

1. e4 {[%emt 0:00:00]} c5 {[%emt 0:00:00]} 2. Nf3 {[%emt 0:00:00]} Nc6 {[%emt 0:00:00]} 3. c3 {[%emt 0:00:00]} Nf6 {[%emt 0:00:00]} 4. d3 {[%emt 0:00:00]} g6 {[%emt 0:00:00]} 5. g3 {[%emt 0:00:05]} Bg7 {[%emt 0:00:00]} 6. Bg2 {[%emt 0:00:08]} O-O {[%emt 0:00:00]} 7. O-O {[%emt 0:00:12]} e5 {[%emt 0:00:00]} 8. h3 {[%emt 0:03:23]} d5 {[%emt 0:02:30]} 9. Nbd2 {[%emt 0:02:14]} b6 {[%emt 0:07:35]} 10. exd5 {[%emt 0:01:42]} Nxd5 {[%emt 0:00:11]} 11. Re1 {[%emt 0:00:50]} Be6 {[%emt 0:04:41]} 12. Nc4 {[%emt 0:02:49]} Qc7 {[%emt 0:11:37]} 13. Ng5 {[%emt 0:02:44]} Rae8 {[%emt 0:02:23]} 14. Nxe6 {[%emt 0:01:01]} fxe6 {[%emt 0:00:04]} 15. a4 {[%emt 0:08:22]} Nce7 {[%emt 0:04:27]} 16. Qe2 {[%emt 0:03:20]} Nc6 {[%emt 0:06:56]} 17. h4 {[%emt 0:04:19]} Re7 {[%emt 0:00:38]} 18. h5 {[%emt 0:02:04]} Ref7 {[%emt 0:11:56]} 19. Rf1 {[%emt 0:04:54]} gxh5 {[%emt 0:02:03]} 20. Qxh5 {[%emt 0:02:55]} Nf6 {[%emt 0:01:02]} 21. Qe2 {[%emt 0:00:19]} Nd5 {[%emt 0:02:03]} 22. Be4 {[%emt 0:00:29]} Nde7 {[%emt 0:06:40]} 23. Be3 {[%emt 0:05:10]} Nf5 {[%emt 0:01:46]} 24. Kg2 {[%emt 0:00:51]} Nce7 {[%emt 0:00:46]} 25. Rh1 {[%emt 0:02:28]} Nxe3+ {[%emt 0:01:03]} 26. fxe3 {[%emt 0:20:50]} Rf2+ {[%emt 0:01:52]} 27. Qxf2 {[%emt 0:01:43]} Rxf2+ {[%emt 0:00:03]} 28. Kxf2 {[%emt 0:00:14]} h6 {[%emt 0:00:02]} 29. Raf1 {[%emt 0:05:26]} Nd5 {[%emt 0:00:16]} 30. Bg6 {[%emt 0:05:13]} Qd8 {[%emt 0:00:15]} 31. Ke2 {[%emt 0:01:38]} Kh8 {[%emt 0:01:00]} 32. Rh5 {[%emt 0:03:14]} Ne7 {[%emt 0:00:51]} 33. Be4 {[%emt 0:01:10]} Qe8 {[%emt 0:00:49]} 34. Rfh1 {[%emt 0:03:15]} Qxa4 {[%emt 0:01:10]} 35. Nxe5 {[%emt 0:09:03]} Qc2+ {[%emt 0:00:15]} 36. Kf3 {[%emt 0:00:23]} Qxb2 {[%emt 0:00:47]} 37. Nf7+ {[%emt 0:01:28]} Kg8 {[%emt 0:00:02]} 38. Nxh6+ {[%emt 0:00:59]} Kf8 {[%emt 0:00:10]} 39. c4 {[%emt 0:02:05]} Ke8 {[%emt 0:02:38]} 40. Ng4 {[%emt 0:00:51]} a5 {[%emt 0:15:46]} 41. R5h2 {[%emt 0:00:00]} Qb3 {[%emt 0:00:00]} 42. Re2 {[%emt 0:00:00]} a4 {[%emt 0:00:00]} 43. Kf4 {[%emt 0:09:00]} a3 {[%emt 0:15:18]} 44. Rhh2 {[%emt 0:16:08]} Bb2 {[%emt 0:00:14]} 45. Ne5 {[%emt 0:00:37]} Kd8 {[%emt 0:05:47]} 46. Rh8+ {[%emt 0:05:19]} Kc7 {[%emt 0:00:01]} 47. Ra8 {[%emt 0:01:59]} Bxe5+ {[%emt 0:13:08]} 48. Kxe5 {[%emt 0:00:26]} Nc6+ {[%emt 0:00:34]} 49. Kxe6 {[%emt 0:02:00]} Nd8+ {[%emt 0:00:51]} 50. Kf5 {[%emt 0:00:33]} Nb7 {[%emt 0:01:14]} 51. Ra7 {[%emt 0:01:16]} Kd6 {[%emt 0:00:06]} 52. Rxb7 {[%emt 0:00:17]} a2 {[%emt 0:00:02]} 53. Rh2 {[%emt 0:00:28]} Qc3 {[%emt 0:03:14]} 54. Rh6+ {[%emt 0:00:08]} 1-0

[Event "Fagernes Open 2021"]
[Site "Fagernes"]
[Date "2021.10.16"]
[Round "8.4"]
[White "Bronmo, Askild Skovgaard"]
[Black "Strand, Amund Pihl"]
[Result "1/2-1/2"]
[ECO "A04"]
[WhiteElo "1637"]
[BlackElo "1712"]
[Annotator "NA"]
[PlyCount "43"]
[EventDate "2021.10.10"]
[EventCountry "NOR"]
[SourceTitle "playchess.com"]
[Source "ChessBase"]
[SourceQuality "1"]
[TimeControl "40/5400+30:1800+30"]

1. e4 {[%emt 0:00:00]} c5 {[%emt 0:00:00]} 2. Nf3 {[%emt 0:00:00]} e6 {[%emt 0:00:00]} 3. g3 {[%emt 0:00:00]} Nc6 {[%emt 0:00:00]} 4. Bg2 {[%emt 0:00:00]} e5 {[%emt 0:00:00]} 5. O-O {[%emt 0:00:00]} g6 {[%emt 0:00:00]} 6. d3 {[%emt 0:00:01]} Bg7 {[%emt 0:00:00]} 7. Nc3 {[%emt 0:01:22]} Nge7 {[%emt 0:00:00]} 8. Be3 {[%emt 0:00:55]} d6 {[%emt 0:00:00]} 9. Qd2 {[%emt 0:01:29]} O-O {[%emt 0:00:00]} 10. Ne1 {[%emt 0:08:31]} Be6 {[%emt 0:02:59]} 11. Ne2 {[%emt 0:05:10]} Qd7 {[%emt 0:09:11]} 12. c4 {[%emt 0:05:43]} f5 {[%emt 0:05:14]} 13. f4 {[%emt 0:04:46]} fxe4 {[%emt 0:07:45]} 14. Bxe4 {[%emt 0:00:48]} Nf5 {[%emt 0:01:00]} 15. Ng2 {[%emt 0:05:14]} Nxe3 {[%emt 0:06:53]} 16. Nxe3 {[%emt 0:00:09]} Bh6 {[%emt 0:21:24]} 17. Nd5 {[%emt 0:09:57]} Ne7 {[%emt 0:05:48]} 18. Nec3 {[%emt 0:02:42]} Nxd5 {[%emt 0:05:12]} 19. Nxd5 {[%emt 0:01:11]} Bxd5 {[%emt 0:01:56]} 20. Bxd5+ {[%emt 0:00:43]} Kh8 {[%emt 0:00:05]} 21. Qc3 {[%emt 0:00:35]} Bg7 {[%emt 0:02:11]} 22. fxe5 {[%emt 0:01:13]} 1/2-1/2